bitfinex/quotes_ETHUSD_20250625
["timestamp","ask_amount","ask_price","bid_price","bid_amount"]
[1750811436958,4.87818259,2450.1,2449.6,4.76785127]
[1750811437164,4.87818259,2450.1,2449.7,4.08212971]
[1750811437394,4.08171625,2450.0,2449.5,1.749]
[1750811437860,4.08171625,2450.0,2449.6,4.08227371]
[1750811438389,4.87825356,2450.1,2449.6,4.08227371]
[1750811438594,4.08164434,2450.0,2449.5,5.8314151]
[1750811438760,4.08164434,2450.0,2449.5,7.49241481]
[1750811438962,0.8153,2449.8,2449.4,5.83153903]
[1750811439173,0.8153,2449.8,2449.4,5.83151485]
[1750811439361,0.8153,2449.8,2449.6,4.08219458]
[1750811440494,0.7811,2450.0,2449.6,4.08219458]
[1750811440895,0.7811,2450.0,2449.7,4.08211751]
[1750811441095,0.7811,2450.0,2449.8,4.08195859]
[1750811441756,0.7625,2450.2,2449.8,4.08195859]
[1750811442363,4.84380806,2450.2,2449.7,4.08203633]
[1750811442569,4.84381327,2450.2,2449.7,4.08204972]
[1750811442992,4.08151471,2450.1,2449.6,4.87571018]
[1750811443180,4.08151471,2450.1,2449.6,6.59452501]
[1750811443565,4.84388512,2450.2,2449.7,4.08211525]
[1750811443767,0.26390643,2450.1,2449.7,4.08211525]
[1750811443962,4.84388512,2450.2,2449.7,4.08211525]
[1750811444167,4.84388512,2450.2,2449.8,4.08194025]
[1750811444168,0.26390645,2450.1,2449.8,4.08194025]
[1750811444478,4.84746059,2450.4,2449.9,4.08179925]
[1750811444692,0.26390874,2450.3,2449.9,4.08179925]
[1750811444897,10.7664,2450.4,2450.0,4.08161845]
[1750811445093,0.26390858,2450.3,2450.0,4.08161845]
[1750811445293,14.84736989,2450.4,2449.9,4.08171532]
[1750811445464,4.34505657,2450.3,2449.9,4.08171532]
[1750811445663,0.26390741,2450.2,2449.9,4.08171532]
[1750811445864,14.84744019,2450.4,2449.9,4.08171532]
[1750811446065,0.26390746,2450.3,2449.9,4.08171532]
[1750811446277,0.26402634,2450.2,2449.9,4.08171532]
[1750811446466,14.84744019,2450.4,2449.9,4.08171532]
[1750811446684,4.08137172,2450.2,2449.7,4.08209726]
[1750811447005,0.26405613,2450.1,2449.8,4.08192532]
[1750811447183,4.08122938,2450.3,2449.8,4.08192532]
[1750811447388,0.8104,2450.9,2450.1,11.11250173]
[1750811447699,0.8104,2450.9,2450.6,4.08052012]
[1750811447993,0.8104,2450.9,2450.4,5.82684799]
[1750811448197,0.8104,2450.9,2450.5,4.08078665]
[1750811448694,0.8104,2450.9,2450.6,4.08058171]
[1750811449610,0.8104,2450.9,2450.5,4.08071066]
[1750811449774,0.8104,2450.9,2450.6,4.08056421]
[1750811450173,0.8104,2450.9,2450.6,4.08063331]
[1750811450392,0.7544,2451.2,2450.7,4.08037338]
[1750811450575,4.2471034,2451.1,2450.6,4.08055595]
[1750811450777,0.16722395,2451.0,2450.6,4.08055595]
[1750811450980,4.07987945,2451.1,2450.6,4.08055595]
[1750811451181,0.16722063,2451.0,2450.6,4.08055595]
[1750811451377,4.07987945,2451.1,2450.6,4.08055595]
[1750811451604,0.7805,2450.9,2450.5,4.08073222]
[1750811452303,0.7805,2450.9,2450.2,1.11125017]
[1750811452519,0.7805,2450.7,2449.9,2.576]
[1750811452800,4.08132045,2450.2,2449.7,4.08203673]
[1750811452970,0.7805,2450.3,2449.9,4.08176162]
[1750811453170,0.7805,2450.3,2449.9,0.40817616]
[1750811453396,0.7805,2450.3,2450.0,4.08147955]
[1750811453705,0.8077,2450.6,2450.0,4.89983195]
[1750811453906,0.8077,2450.6,2450.2,4.08127652]
[1750811454085,2.37385465,2450.6,2450.2,4.08127652]
[1750811454273,12.37385465,2450.6,2450.2,4.08127652]
[1750811454474,2.37385465,2450.6,2450.2,4.08127652]
[1750811454802,0.8077,2450.6,2450.3,4.08109901]
[1750811456726,0.8077,2450.6,2450.4,4.08092945]
[1750811457209,0.8077,2450.6,2450.2,4.08121725]
[1750811458603,4.88835975,2450.6,2450.1,4.08139024]
[1750811458802,4.08068546,2450.6,2449.8,11.54389812]
[1750811459100,4.87563338,2450.3,2449.9,4.08172014]
[1750811459409,4.87563338,2450.3,2449.8,4.08190546]
[1750811460609,4.87563338,2450.3,2449.7,4.08206654]
[1750811460610,0.7837,2450.2,2448.9,0.31043223]
[1750811460807,0.8152,2450.1,2449.4,0.7849]
[1750811461000,0.8152,2450.1,2449.5,5.82845216]
[1750811461200,4.08065695,2450.6,2449.8,0.7849]
[1750811461201,0.8152,2450.3,2449.8,0.7849]
[1750811461505,0.8152,2450.5,2450.1,4.08133366]
[1750811461807,0.8152,2450.5,2450.1,4.08143979]
[1750811462498,0.8152,2450.5,2450.2,4.08119144]
[1750811462898,0.8152,2450.5,2450.3,4.08107726]
[1750811464323,0.8152,2450.5,2450.2,4.0812321]
[1750811465111,0.8152,2450.5,2450.1,4.08140123]
[1750811465814,2.30478438,2450.5,2449.9,1.746]
[1750811465994,6.38572281,2450.5,2449.9,5.82768821]
[1750811466386,4.08105239,2450.4,2449.9,5.82768821]
[1750811466583,0.7533,2450.2,2449.7,1.746]
[1750811466894,0.7533,2450.2,2449.8,4.08196587]
[1750811468021,0.7533,2450.2,2449.9,4.08179592]
[1750811468714,0.7804,2450.4,2450.0,4.0815375]
[1750811469516,4.86137509,2450.4,2450.0,4.0815375]
[1750811469710,0.7804,2450.4,2450.0,4.0815375]
[1750811470382,4.86138067,2450.4,2449.9,5.07269771]
[1750811470913,0.7804,2450.4,2450.0,4.08161907]
[1750811471818,4.86138668,2450.4,2449.9,4.08170589]
[1750811472203,4.08115679,2450.3,2449.8,4.84895765]
[1750811472384,4.08115679,2450.3,2449.8,4.08185765]
[1750811472587,4.08115679,2450.3,2449.8,4.7441178]
[1750811472789,4.8614404,2450.4,2449.9,4.08179864]
[1750811472989,0.7804,2450.4,2449.9,4.08179925]
[1750811473190,0.7804,2450.4,2450.0,4.08151931]
[1750811475001,0.7804,2450.4,2450.1,4.08143057]
[1750811475197,0.7804,2450.4,2450.0,4.08154203]
[1750811477012,4.86140487,2450.4,2449.9,4.08170364]
[1750811477321,4.86140487,2450.4,2450.0,4.08162983]
[1750811477517,0.7804,2450.4,2450.0,4.08162983]
[1750811477721,0.7804,2450.4,2450.1,4.08145469]
[1750811477926,0.7804,2450.4,2450.0,4.08153617]
[1750811479119,0.7804,2450.4,2450.1,4.08142847]
[1750811479324,0.7804,2450.4,2450.2,4.08129126]
[1750811479520,10.8155,2450.7,2450.3,4.08113292]
[1750811480510,10.0,2450.5,2450.2,4.08122051]
[1750811481110,14.89604668,2450.7,2450.2,4.08122051]
[1750811481593,14.89604668,2450.7,2450.3,4.08110954]
[1750811481798,13.38212407,2450.7,2450.3,4.08110954]
[1750811484803,13.38212407,2450.7,2450.4,4.08096513]
[1750811485003,0.8155,2450.7,2450.4,4.08096513]
[1750811485527,0.8155,2450.7,2450.3,4.08101677]
[1750811486026,0.8155,2450.7,2450.4,4.08095367]
[1750811486220,0.8155,2450.7,2450.3,4.0810977]
[1750811488431,4.89599988,2450.7,2450.3,4.0810977]
[1750811489021,0.8155,2450.7,2450.3,4.0810977]
[1750811489233,4.89597284,2450.7,2450.3,4.0810977]
[1750811489428,0.8155,2450.7,2450.4,4.08094298]
[1750811490509,0.8155,2450.7,2450.5,4.08078981]
[1750811490850,0.8233,2450.9,2450.0,0.774]
[1750811491014,10.8233,2450.9,2450.5,4.08071074]
[1750811491947,10.8233,2450.9,2450.6,4.08062688]
[1750811492321,0.8233,2450.9,2450.6,4.08058627]
[1750811492947,0.8233,2450.9,2450.5,4.08071262]
[1750811493450,4.90343683,2450.9,2450.5,4.08071262]
[1750811493747,4.90343683,2450.9,2450.4,4.08087627]
[1750811495320,4.90343683,2450.9,2450.5,4.08077939]
[1750811495953,4.90343683,2450.9,2450.4,4.08089616]
[1750811497957,4.08031264,2450.8,2450.4,4.08089616]
[1750811498123,4.90349785,2450.9,2450.4,4.08089616]
[1750811498449,4.08057364,2450.7,2450.2,5.8241802]
[1750811498654,4.90352682,2450.9,2450.4,4.08085036]
[1750811499453,4.90352682,2450.9,2450.4,4.08086916]
[1750811499624,4.0803322,2450.8,2450.4,4.08086916]
[1750811500257,4.0803322,2450.8,2450.3,4.08103938]
[1750811500459,0.7548,2450.7,2450.2,4.08119755]
[1750811500633,4.8353045,2450.7,2450.2,4.08119755]
[1750811500841,4.8353045,2450.7,2450.3,4.08111894]
[1750811501056,0.7548,2450.7,2450.3,4.08111894]
[1750811502321,0.7548,2450.7,2450.4,4.08095579]
[1750811502528,0.7548,2450.7,2450.1,3.33000529]
[1750811502730,0.7548,2450.7,2450.4,4.08080294]
[1750811502929,0.7548,2450.7,2450.5,4.08079927]
[1750811505963,0.7548,2450.7,2450.4,4.08086977]
[1750811506260,0.7548,2450.7,2450.5,4.08079886]
[1750811506462,0.7548,2450.7,2450.2,5.49110015]
[1750811506668,0.7548,2450.7,2450.3,5.61127057]
[1750811506953,4.83528404,2450.7,2450.3,4.08105646]
[1750811507862,4.83528404,2450.7,2450.2,4.08122956]
[1750811508047,4.83528404,2450.7,2450.1,12.50739148]
[1750811508556,0.7548,2450.7,2450.3,4.08112328]
[1750811508956,4.8352671,2450.7,2450.3,4.08112328]
[1750811509359,0.7548,2450.7,2450.3,4.08112328]
[1750811509734,0.7548,2450.7,2450.4,4.08094783]
[1750811509959,0.7548,2450.7,2450.3,4.08099272]
[1750811510168,0.7548,2450.7,2450.4,4.08088598]
[1750811510362,0.7548,2450.7,2450.5,4.08078343]
[1750811510733,0.7548,2450.7,2450.4,4.08087553]
[1750811510933,0.7548,2450.7,2450.5,4.08078714]
[1750811511772,20.76504784,2451.0,2450.5,4.08078714]
[1750811511962,0.8033,2450.9,2450.5,4.08078714]
[1750811513362,0.8033,2450.9,2450.5,4.080702]
[1750811515254,0.8033,2450.9,2450.6,4.0806323]
[1750811515471,0.8033,2450.9,2450.6,4.08048231]
[1750811515960,0.8033,2450.9,2450.7,4.08039568]
[1750811516562,0.8033,2450.9,2450.6,4.08048231]
[1750811516563,0.8033,2450.9,2450.6,4.08054874]
[1750811518857,0.8033,2450.9,2450.5,4.08077713]
[1750811518858,0.8033,2450.9,2450.7,4.08044849]
[1750811520640,0.8033,2450.9,2450.6,4.08056387]
[1750811520844,0.8033,2450.9,2450.5,4.08071802]
[1750811521641,0.8033,2450.9,2450.6,4.08063054]
[1750811522370,0.8033,2450.9,2450.5,4.08071904]
[1750811522871,0.8033,2450.9,2450.6,4.08061557]
[1750811525176,0.8033,2450.9,2450.7,4.08043905]
[1750811527178,0.8055,2451.1,2450.7,0.81611744]
[1750811527472,0.8055,2451.4,2451.1,4.07977353]
[1750811528249,0.8055,2451.4,2451.0,4.07987146]
[1750811528454,0.8055,2451.4,2450.9,0.8055]
[1750811528753,0.8055,2451.4,2451.0,4.07996198]
[1750811529688,4.88482402,2451.4,2450.9,6.27793338]
[1750811529986,4.88482402,2451.4,2451.0,4.0799652]
[1750811530158,4.88482402,2451.4,2450.9,4.08004868]
[1750811531556,0.8055,2451.4,2451.0,4.07994214]
[1750811531761,0.8055,2451.4,2450.7,3.38771744]
[1750811532086,0.8055,2451.4,2451.0,4.0798152]
[1750811532586,0.8055,2451.4,2451.1,4.07975916]
[1750811533089,0.7822,2451.8,2451.2,6.48103567]
[1750811533293,0.7822,2451.8,2451.4,4.07922608]
[1750811533590,0.7822,2451.8,2451.5,4.89488241]
[1750811534373,10.8213,2452.0,2451.6,4.07883252]
[1750811535156,0.8213,2452.0,2451.5,4.89497847]
[1750811535361,0.8213,2452.0,2451.8,4.07855609]
[1750811535560,0.8021,2452.2,2451.9,4.07843155]
[1750811535982,0.02,2615.9,2451.9,4.07843155]
[1750811535983,0.8246,2452.5,2451.9,0.89379876]
[1750811536176,0.8246,2452.5,2452.1,4.07799141]
[1750811536486,0.8246,2452.5,2452.2,4.07794924]
[1750811536681,0.8246,2452.5,2452.1,4.07805722]
[1750811537265,0.8246,2452.5,2451.8,8.21803567]
[1750811537460,0.8246,2452.5,2452.2,4.07788688]
[1750811537667,0.8246,2452.5,2452.3,4.07778076]
[1750811538278,0.8246,2452.5,2452.2,4.07788381]
[1750811539595,0.7799,2452.7,2452.4,4.07747554]
[1750811540097,4.85708269,2452.7,2452.2,4.07787142]
[1750811540262,0.7799,2452.7,2452.3,4.07777277]
[1750811540598,0.7799,2452.7,2452.4,4.07759644]
[1750811540966,0.7799,2452.7,2452.5,4.07744574]
[1750811541176,4.07669242,2453.0,2452.5,4.07739438]
[1750811541177,0.8074,2452.9,2452.5,4.07739438]
[1750811541371,10.0,2452.8,2452.5,4.07739438]
[1750811541593,0.8074,2452.7,2452.0,2.5191]
[1750811541766,0.8074,2452.7,2452.3,4.07778799]
[1750811542195,0.8074,2452.7,2452.4,4.07759645]
[1750811542495,2.96340411,2452.9,2452.5,4.07743737]
[1750811542891,2.96340411,2452.9,2452.6,4.0773021]
[1750811544263,7.04029708,2452.9,2452.3,4.07780451]
[1750811544468,7.04029708,2452.9,2452.2,11.38035181]
[1750811544672,2.96340411,2452.9,2452.4,4.07755436]
[1750811545290,2.96340411,2452.9,2452.5,4.0774612]
[1750811545894,2.96340411,2452.9,2452.4,4.07754902]
[1750811546080,4.8842072,2452.9,2452.4,4.07754902]
[1750811546404,10.8074,2452.9,2452.4,4.07754902]
[1750811546700,0.8074,2452.9,2452.5,4.07745275]
[1750811547795,4.88422763,2452.9,2452.4,4.07755694]
[1750811548102,0.8074,2452.9,2452.5,4.07747146]
[1750811549308,4.88422038,2452.9,2452.4,4.0775558]
[1750811549483,4.07703579,2452.8,2452.5,0.81553426]
[1750811550197,4.07703579,2452.8,2452.3,4.07769274]
[1750811550511,0.8074,2452.9,2452.2,7.15669537]
[1750811550512,4.87648259,2452.7,2452.2,7.15669537]
[1750811550921,4.87648259,2452.7,2452.2,1.34282615]
[1750811551220,6.48103567,2453.1,2452.1,1.736]
[1750811551221,0.7993,2452.4,2452.1,1.736]
[1750811552218,4.87701382,2452.4,2451.9,4.07843741]
[1750811553006,4.07785226,2452.3,2451.8,5.81458351]
[1750811553414,10.74979551,2452.4,2451.5,0.81585765]
[1750811553732,0.8039,2451.6,2451.3,1.736]
[1750811554091,4.88287975,2451.6,2451.3,1.736]
[1750811554287,4.07918654,2451.5,2451.0,4.84094505]
[1750811554596,4.07913522,2451.5,2451.0,5.81593173]
[1750811554793,4.88294104,2451.6,2451.1,1.89679674]
[1750811555000,0.8039,2451.6,2451.2,4.0795137]
[1750811555713,4.85725842,2451.9,2451.4,4.07929163]
[1750811557214,0.7787,2451.9,2451.3,4.07944218]
[1750811557419,0.7787,2451.9,2451.5,4.0791075]
[1750811558422,0.7787,2451.9,2451.6,4.07893323]
[1750811558632,14.85677891,2452.2,2451.6,4.48673072]
[1750811558926,14.85677891,2452.2,2451.5,7.26973567]
[1750811558927,0.7787,2452.2,2451.5,7.26973567]
[1750811559291,0.7787,2452.2,2451.9,4.07845986]
[1750811559492,0.7787,2452.4,2452.0,4.07820354]
[1750811560427,0.7787,2452.4,2452.1,4.07813435]
[1750811560721,0.7787,2452.4,2452.0,4.07821339]
[1750811562226,0.7787,2452.4,2452.0,5.54198766]
[1750811563395,4.85635597,2452.4,2452.0,1.46377037]
[1750811563597,4.85635597,2452.4,2451.9,4.07839383]
[1750811564235,0.7787,2452.4,2451.9,4.07839383]
[1750811564710,0.7787,2452.4,2452.0,4.07829475]
[1750811565535,0.7787,2452.4,2452.1,4.07812995]
[1750811566560,0.7787,2452.4,2451.9,4.07841895]
[1750811566561,0.7787,2452.4,2452.2,4.07796693]
[1750811567147,0.7787,2452.4,2452.1,4.07804382]
[1750811567516,0.7787,2452.4,2452.2,4.07795468]
[1750811569453,0.7787,2452.4,2452.3,4.07780451]
[1750811570726,10.7645,2452.6,2452.4,4.07763034]
[1750811570944,10.7645,2452.6,2452.1,4.07807861]
[1750811571145,10.7645,2452.6,2452.3,4.07780135]
[1750811571907,0.7645,2452.6,2452.4,4.07762794]
[1750811573856,0.7645,2452.6,2452.3,4.0777952]
[1750811574963,0.7645,2452.6,2452.2,4.07791013]
[1750811575363,4.84181384,2452.6,2452.1,4.07804753]
[1750811576033,0.7645,2452.6,2452.2,4.07796082]
[1750811576755,0.7645,2452.6,2452.3,4.07778668]
[1750811578067,0.7645,2452.6,2452.2,4.07788943]
[1750811578971,4.84182876,2452.6,2452.1,4.07810554]
[1750811579771,4.84182876,2452.6,2452.2,4.07796248]
[1750811579970,0.7645,2452.6,2452.2,4.07796248]
[1750811580268,0.7645,2452.6,2452.3,4.07779704]
[1750811581245,0.805,2452.8,2452.5,4.07745294]
[1750811581444,0.805,2452.8,2452.6,4.07725461]
[1750811582270,0.805,2452.8,2452.6,4.07722111]
[1750811582745,0.805,2452.8,2452.5,4.07741575]
[1750811585071,0.805,2452.8,2452.4,4.07754601]
[1750811585371,0.805,2452.8,2452.4,4.07762987]
[1750811585673,4.85699452,2452.6,2452.1,4.07804234]
[1750811585876,0.7796,2452.5,2452.1,4.07810628]
[1750811590080,0.7796,2452.5,2452.2,4.07795283]
[1750811590248,0.7796,2452.5,2452.1,4.07806392]
[1750811590578,0.7796,2452.5,2452.0,4.07821257]
[1750811590776,0.7796,2452.5,2452.0,5.73868383]
[1750811590978,4.07765094,2452.4,2452.0,5.73868383]
[1750811591274,4.07765094,2452.4,2451.9,1.733]
[1750811591275,4.07750782,2452.5,2451.9,4.07838765]
[1750811591442,4.07799663,2452.2,2451.7,1.733]
[1750811591651,4.07847716,2451.9,2451.3,4.83904634]
[1750811591988,0.8163,2451.8,2451.4,4.0791777]
[1750811592282,0.8163,2451.8,2451.5,4.07911943]
[1750811592673,0.826,2452.0,2451.4,0.98917157]
[1750811592882,0.826,2452.0,2451.7,4.07871916]
[1750811594963,0.826,2452.0,2451.7,4.07880246]
[1750811595288,0.826,2452.0,2451.8,4.07863282]
[1750811595484,7.4279,2452.2,2451.7,0.89687632]
[1750811595649,11.50587405,2452.2,2451.7,4.07868076]
[1750811595850,4.83887405,2452.2,2451.7,4.07868076]
[1750811598078,10.7609,2452.2,2451.8,4.07861853]
[1750811599405,14.83887427,2452.2,2451.7,4.07873776]
[1750811600590,4.07814278,2452.1,2451.7,4.07873776]
[1750811600996,0.763,2451.8,2451.3,4.07946283]
[1750811601198,0.763,2451.8,2451.4,4.07920456]
[1750811601800,0.763,2451.8,2451.5,4.07906546]
[1750811603891,0.763,2451.8,2451.6,4.07894045]
[1750811604380,0.763,2451.8,2451.6,4.89474104]
[1750811604780,0.763,2451.8,2451.6,0.81580059]
[1750811608308,0.763,2451.8,2451.4,4.07920925]
[1750811608508,4.84166109,2451.8,2451.3,4.07943989]
[1750811608804,4.07883132,2451.7,2451.3,4.07943989]
[1750811609010,4.07883132,2451.7,2451.1,4.90540197]
[1750811609011,4.07883132,2451.7,2451.2,5.81155693]
[1750811609311,4.07883132,2451.7,2451.3,1.73829589]
[1750811609482,4.84173051,2451.8,2451.3,5.81775891]
[1750811610809,4.07897302,2451.6,2451.0,4.07989195]
[1750811611008,4.07897302,2451.6,2451.1,4.07973069]
[1750811612016,4.07896883,2451.6,2451.1,4.07973069]
[1750811612217,4.07916032,2451.5,2451.0,4.07986974]
[1750811612379,0.7901,2451.4,2451.0,4.07986974]
[1750811613514,0.7901,2451.4,2451.1,4.07978126]
[1750811613687,0.7901,2451.4,2451.1,4.07971815]
[1750811614513,0.7901,2451.4,2451.2,4.07962517]
[1750811615311,4.08014976,2450.9,2450.4,5.81288588]
[1750811615511,4.83651656,2450.8,2450.4,2.72139836]
[1750811615684,4.83651656,2450.8,2450.4,1.732]
[1750811616521,0.7562,2450.8,2450.4,1.732]
[1750811616815,4.8365032,2450.8,2450.4,1.732]
[1750811617113,4.8365032,2450.8,2450.3,4.08098458]
[1750811617326,4.83660944,2450.8,2450.1,0.79]
[1750811617527,4.08063119,2450.7,2450.1,7.0905261]
[1750811617711,4.08065254,2450.6,2450.1,7.0905261]
[1750811618019,4.08055382,2450.7,2450.2,4.08128721]
[1750811619927,0.7562,2450.8,2450.2,4.08128721]
[1750811619928,4.83659063,2450.8,2450.3,4.08113292]
[1750811620822,4.83659328,2450.8,2450.3,4.08113145]
[1750811621220,0.7562,2450.8,2450.3,4.08113145]
[1750811621422,4.08049076,2450.7,2450.2,4.08122043]
[1750811621588,4.83692968,2450.6,2450.1,4.56856509]
[1750811622284,4.08080109,2450.5,2450.1,4.56856509]
[1750811622612,4.08080109,2450.5,2450.1,0.48716151]
[1750811622820,0.8103,2450.8,2449.7,9.791]
[1750811623009,0.8103,2450.4,2449.9,4.08170583]
[1750811623206,4.0812457,2450.3,2449.8,4.08185064]
[1750811623410,4.08130426,2450.2,2449.8,2.73629957]
[1750811623606,4.08130426,2450.2,2449.7,4.08204905]
[1750811624623,0.8103,2450.0,2449.6,4.0822164]
[1750811624796,0.8103,2450.0,2449.8,4.08195488]
[1750811625681,0.8103,2450.3,2449.6,4.08220174]
[1750811625886,4.89143935,2450.3,2449.8,4.08188708]
[1750811626086,4.08132086,2450.2,2449.7,4.08205188]
[1750811626814,4.08132086,2450.2,2449.6,4.08229915]
[1750811626815,0.7747,2450.0,2449.6,4.08218273]
[1750811627110,4.8563627,2450.0,2449.5,4.85607252]
[1750811627317,0.7747,2450.0,2449.6,4.08221108]
[1750811627688,4.8563534,2450.0,2449.5,4.8560876]
[1750811628407,4.08188273,2449.9,2449.4,4.0826127]
[1750811628594,0.7747,2449.8,2449.4,4.0826127]
[1750811629333,0.7747,2449.8,2449.5,4.08237951]
[1750811629833,0.7747,2450.2,2449.6,4.85789397]
[1750811630129,4.0817969,2450.0,2449.5,4.08236924]
[1750811630319,4.98062455,2450.0,2449.5,4.08236924]
[1750811631325,0.89882765,2450.0,2449.6,4.08229558]
[1750811631538,4.90647401,2450.1,2449.7,4.08212839]
[1750811631692,0.825,2450.1,2449.7,4.08212839]
[1750811632235,1.731,2450.9,2449.9,0.8053]
[1750811632408,4.84012363,2450.6,2450.1,4.0813922]
[1750811632889,4.08093342,2450.5,2449.7,0.8188]
[1750811633087,0.8174,2450.2,2449.8,4.0819311]
[1750811633290,0.8174,2450.2,2449.7,4.08203592]
[1750811633519,4.89881366,2450.2,2449.7,4.08203592]
[1750811633896,4.0816075,2450.1,2449.6,4.08227886]
[1750811634094,0.89804212,2450.1,2449.4,12.48147482]
[1750811634295,4.84314282,2449.9,2449.4,4.08255735]
[1750811635123,0.7613,2449.9,2449.5,4.08243938]
[1750811635513,4.84311427,2449.9,2449.4,4.08254894]
[1750811636418,0.7613,2449.9,2449.5,4.08245559]
[1750811636626,0.7613,2449.9,2449.5,4.08238104]
[1750811636833,4.84317312,2449.9,2449.4,4.08253343]
[1750811638223,0.7613,2449.9,2449.5,4.08241869]
[1750811638429,4.8431418,2449.9,2449.4,4.08257315]
[1750811638598,0.7613,2449.9,2449.5,4.08241412]
[1750811639536,0.7613,2449.9,2449.2,5.81393919]
[1750811639738,0.7613,2449.9,2449.4,4.08252714]
[1750811639898,4.84310406,2449.9,2449.4,4.08252714]
[1750811640099,0.7613,2449.9,2449.5,4.08245689]
[1750811640298,4.84313674,2449.9,2449.4,4.08256283]
[1750811641803,0.7613,2449.9,2449.4,4.08256283]
[1750811642044,0.7613,2449.9,2449.5,4.08242608]
[1750811642735,0.7613,2449.9,2449.4,4.08256283]
[1750811642736,0.7613,2449.9,2449.4,4.08263248]
[1750811642904,0.7613,2449.9,2449.6,4.08220905]
[1750811643106,0.7613,2449.9,2449.5,4.08237838]
[1750811643836,4.84312035,2449.9,2449.4,5.20513024]
[1750811644340,4.08198522,2449.8,2449.4,4.08254469]
[1750811645043,4.08198522,2449.8,2449.3,5.41206347]
[1750811645206,4.84318784,2449.9,2449.4,4.08261569]
[1750811645406,0.7613,2449.9,2449.5,4.08244993]
[1750811646137,5.41727199,2449.9,2449.4,4.08259478]
[1750811646707,5.41727199,2449.9,2449.5,4.0824527]
[1750811647008,5.41727199,2449.9,2449.4,4.08254784]
[1750811647309,5.41727199,2449.9,2449.5,4.08244309]
[1750811647640,0.7613,2449.9,2449.5,4.08244309]
[1750811648544,4.8431165,2449.9,2449.5,4.08244309]
[1750811649018,4.8431165,2449.9,2449.3,4.08272544]
[1750811649019,4.8431165,2449.9,2449.4,4.08254884]
[1750811649217,4.08198324,2449.8,2449.4,4.08254884]
[1750811649413,4.8431347,2449.9,2449.4,4.0825281]
[1750811649620,0.7613,2449.9,2449.4,4.0825281]
[1750811649822,0.776,2450.1,2449.7,4.0820507]
[1750811650016,4.08143071,2450.2,2449.4,4.49078871]
[1750811650017,4.08189308,2449.9,2449.4,4.49078871]
[1750811650245,4.08189308,2449.9,2449.4,0.40825281]
[1750811650542,4.08189308,2449.9,2449.4,4.0825424]
[1750811651314,4.08197139,2449.8,2449.4,4.0825424]
[1750811651639,4.08188055,2449.9,2449.4,4.0825424]
[1750811651844,4.08165389,2450.0,2448.9,8.399]
[1750811651845,4.89981907,2449.6,2448.9,8.399]
[1750811652044,4.0824832,2449.5,2449.0,4.08321452]
[1750811652838,4.8997894,2449.6,2449.1,4.08312071]
[1750811653036,0.8174,2449.6,2449.2,4.08292144]
[1750811653238,4.89970433,2449.6,2449.1,4.08305862]
[1750811653549,4.08248726,2449.5,2449.0,4.08321858]
[1750811653718,4.08248726,2449.5,2449.0,5.99642095]
[1750811653920,4.08248726,2449.5,2449.0,1.91320237]
[1750811654149,4.08289555,2449.3,2449.0,1.91320237]
[1750811654456,4.08300834,2449.2,2448.8,0.2185795]
[1750811654650,0.7551,2449.3,2448.8,0.2185795]
[1750811654945,4.08313307,2449.1,2448.8,0.2185795]
[1750811655146,4.08346604,2448.9,2448.8,0.2185795]
[1750811655716,4.83848593,2449.0,2448.8,0.2185795]
[1750811655919,4.83806586,2449.2,2448.8,0.2185795]
[1750811656118,4.08330367,2449.0,2448.8,0.2185795]
[1750811656966,4.08321372,2449.1,2448.8,0.2185795]
[1750811657833,4.83815899,2449.2,2448.8,0.2185795]
[1750811658034,4.08314177,2449.1,2448.8,0.2185795]
[1750811658349,4.86636604,2448.9,2448.8,0.2185795]
[1750811658546,5.03363844,2448.9,2448.8,0.2185795]
[1750811658767,15.03363844,2448.9,2448.8,0.2185795]
[1750811659069,17.31363844,2448.9,2448.8,0.2185795]
[1750811659236,17.31363844,2448.9,2447.2,1.50618316]
[1750811659237,0.55,2448.6,2446.4,4.72650318]
[1750811659428,0.7829,2447.8,2446.5,1.30320827]
[1750811659756,7.4549,2447.8,2447.1,4.08642725]
[1750811659969,7.4549,2447.8,2447.0,0.8087]
[1750811659970,0.7829,2447.8,2447.2,4.08614549]
[1750811660266,4.86820955,2447.8,2447.2,4.08615688]
[1750811660554,4.08548248,2447.7,2447.1,4.08642783]
[1750811661121,4.08563914,2447.6,2447.1,4.08642783]
[1750811661325,4.08553326,2447.7,2447.1,4.08642783]
[1750811661553,4.08567588,2447.6,2447.0,2.5387]
[1750811661757,5.76361764,2447.8,2447.2,4.08628951]
[1750811661929,1.67821977,2447.8,2447.0,2.5387]
[1750811662129,4.90598385,2448.0,2447.2,4.08630271]
[1750811662325,14.0851512,2447.9,2447.2,4.08630271]
[1750811662530,14.08519968,2447.9,2447.3,4.08602791]
[1750811663342,14.08519968,2447.9,2447.2,4.08624742]
[1750811663343,4.08531588,2447.8,2447.2,4.08624742]
[1750811663556,5.98444469,2447.8,2447.2,4.08624742]
[1750811663861,4.08552358,2447.7,2447.1,4.34026369]
[1750811664066,5.98444469,2447.8,2447.1,4.34026369]
[1750811664271,5.98444469,2447.8,2447.1,4.08639369]
[1750811664433,5.98444469,2447.8,2447.2,4.0862835]
[1750811664772,0.7714,2447.7,2447.0,0.8087]
[1750811664942,4.08681921,2446.9,2446.3,4.30624449]
[1750811665147,4.08708118,2446.8,2446.3,0.2185795]
[1750811665357,0.7714,2446.9,2446.3,0.2185795]
[1750811665660,4.08722996,2446.7,2446.3,0.2185795]
[1750811665858,4.85832529,2446.9,2446.3,0.2185795]
[1750811665859,0.7714,2446.9,2446.3,1.0268795]
[1750811666230,4.85822354,2446.9,2446.3,1.0268795]
[1750811666434,4.08740417,2446.6,2446.3,0.2185795]
[1750811666733,4.08697073,2446.8,2446.3,0.2185795]
[1750811666734,10.7596,2446.8,2446.3,0.2185795]
[1750811667166,14.84723897,2446.4,2446.3,0.2185795]
[1750811667472,12.65307302,2446.4,2446.3,0.2185795]
[1750811668232,16.74071199,2446.4,2446.3,0.2185795]
[1750811668430,12.65307302,2446.4,2446.3,0.2185795]
[1750811668645,16.74071199,2446.4,2446.3,0.2185795]
[1750811668851,12.65307302,2446.4,2446.3,0.2185795]
[1750811669263,14.84723897,2446.4,2446.3,0.2185795]
[1750811669635,10.7596,2446.4,2446.3,0.2185795]
[1750811669959,14.84723897,2446.4,2446.3,0.2185795]
[1750811670344,10.7596,2446.4,2446.3,0.2185795]
[1750811670992,14.84723897,2446.4,2446.3,0.2185795]
[1750811671140,18.11636262,2446.4,2446.3,0.2185795]
[1750811671347,27.32024774,2446.4,2446.3,0.2185795]
[1750811672790,27.32024774,2446.4,2445.9,0.66666667]
[1750811672791,24.33829256,2446.0,2445.9,0.66666667]